fUSD/lending_fUSD_20240215
["ID","MTS","AMOUNT","RATE_DAILY","PERIOD"]
[314107857,1707984642608,-169.37,0.000419,61]
[314107858,1707984642617,-261.5,0.000419,61]
[314107859,1707984642626,-642.0,0.000419,61]
[314107860,1707984642635,-150.5,0.000419,61]
[314107861,1707984642645,-347.0,0.000419,61]
[314107862,1707984642654,-341.0,0.000419,61]
[314107863,1707984642663,-158.1,0.0004191,61]
[314107864,1707984642672,-150.5,0.0004191,61]
[314107865,1707984642682,-150.5,0.0004191,61]
[314107866,1707984642691,-198.61,0.0004191,61]
[314107867,1707984642701,-160.05,0.0004191,61]
[314107868,1707984642710,-150.5,0.0004191,61]
[314107869,1707984642719,-220.14,0.0004191,61]
[314107870,1707984642729,-158.63,0.0004191,61]
[314107871,1707984642738,-150.5,0.0004191,61]
[314107872,1707984642747,-295.0,0.0004191,30]
[314107873,1707984642757,-242.99,0.0004191,61]
[314107874,1707984642767,-642.0,0.0004191,61]
[314107875,1707984642776,-150.5,0.0004191,61]
[314107876,1707984642785,-347.0,0.0004191,61]
[314107877,1707984642795,-341.0,0.0004191,61]
[314107878,1707984642803,-200.0,0.00041917,13]
[314107879,1707984642813,-1081.99,0.00041917,30]
[314107880,1707984642822,-811.23,0.00041917,30]
[314107881,1707984642831,-500.0,0.00041917,30]
[314107883,1707984642841,-600.0,0.00041917,30]
[314107884,1707984642851,-555.9,0.00041917,30]
[314107885,1707984642860,-159.53892364,0.00041924,30]
[314107886,1707984642869,-1500.0,0.0004196,2]
[314107887,1707984642878,-312.00317405,0.00042,25]
[314107888,1707984642888,-1383.37988982,0.00042,30]
[314107889,1707984642897,-3499.99,0.00042,120]
[314107890,1707984642906,-24000.0,0.00042,120]
[314107891,1707984642915,-23999.99,0.00042,120]
[314107892,1707984642924,-951.5,0.00042,120]
[314107893,1707984642934,-370.95,0.00042,120]
[314107894,1707984642944,-24000.0,0.00042,120]
[314107895,1707984643046,-174.2708,0.00042,59]
[314107896,1707984643072,-150.0,0.00042,15]
[314107897,1707984643082,-155.52,0.00042,4]
[314107898,1707984643091,-155.52,0.00042,4]
[314107899,1707984643100,-155.52,0.00042,4]
[314107900,1707984643109,-166.7,0.00042,4]
[314107901,1707984643118,-166.7,0.00042,4]
[314107902,1707984643127,-200.0,0.00042,2]
[314107903,1707984643136,-200.0,0.00042,49]
[314107904,1707984643145,-200.0,0.00042,2]
[314107905,1707984643157,-1000.0,0.00042,7]
[314107906,1707984643166,-1500.0,0.00042003,2]
[314107907,1707984643175,-150.0,0.00042019,2]
[314107908,1707984643184,-159.69045391,0.00042036,30]
[314107909,1707984643193,-335.51,0.0004206,120]
[314107910,1707984643202,-442.2871075,0.000421,30]
[314107911,1707984643212,-151.0,0.00042127,2]
[314107912,1707984643221,-250.49088,0.00042127,2]
[314107913,1707984643229,-200.0,0.00042191,14]
[314107914,1707984643238,-1081.99,0.00042191,30]
[314107915,1707984643248,-811.23,0.00042191,30]
[314107916,1707984643258,-500.0,0.00042191,30]
[314107917,1707984643268,-600.0,0.00042191,30]
[314107918,1707984643277,-555.9,0.00042191,30]
[314107919,1707984643286,-282.43,0.00042192,2]
[314107920,1707984643295,-200.0,0.000422,17]
[314107921,1707984643305,-150.0,0.000422,16]
[314107922,1707984643314,-169.653428,0.000422,16]
[314107923,1707984643323,-168.4,0.00042205,2]
[314107924,1707984643332,-150.5,0.0004221,61]
[314107925,1707984643341,-2734.81107982,0.0004221,2]
[314107926,1707984643350,-150.5,0.0004222,61]
[314107927,1707984643360,-150.5,0.0004222,61]
[314107928,1707984643369,-150.5,0.0004222,61]
[314107929,1707984643378,-150.5,0.0004223,61]
[314107930,1707984643387,-150.5,0.0004223,61]
[314107931,1707984643397,-150.5,0.0004223,61]
[314107932,1707984643409,-172.0,0.0004223,60]
[314107934,1707984643418,-150.5,0.0004223,61]
[314107935,1707984643428,-150.5,0.0004223,61]
[314107936,1707984643438,-1108.0,0.0004223,20]
[314107937,1707984643447,-730.0,0.0004223,20]
[314107938,1707984643457,-2430.7920261,0.0004223,2]
[314107939,1707984643467,-2348.335213,0.0004223,2]
[314107940,1707984643476,-584.84264893,0.00042237,10]
[314107941,1707984643486,-199.4787502,0.00042239,30]
[314107942,1707984643495,-150.0,0.00042239,3]
[314107943,1707984643506,-150.0,0.00042239,3]
[314107944,1707984643517,-950174.07051018,0.0004224,30]
[314107945,1707984643569,-753.78702579,0.0004224,30]
[314107946,1707984643584,-741.27723955,0.0004224,30]
[314107947,1707984643598,-420.8888349,0.0004224,30]
[314107948,1707984643610,-313.89851893,0.0004224,30]
[314107949,1707984643622,-7685.31870932,0.0004224,30]
[314107950,1707984643634,-2471.88572746,0.0004224,30]
[314107951,1707984643646,-2761.48879702,0.0004224,30]
[314107952,1707984643658,-569.34093392,0.0004224,30]
[314107953,1707984643679,-2.32023323,0.0004224,30]
[314107954,1707984643691,-2053.95296311,0.0004224,30]
[314107955,1707984643702,-1034.95392,0.0004224,30]
[314107956,1707984643868,-698.60523661,0.00041095,3]
[314107957,1707984643880,-301.39476339,0.00041095,3]
[314107958,1707984643890,-181.0293949,0.00041095,3]
[314107959,1707984643902,-234.41331553,0.00041095,3]
[314107960,1707984643911,-275.49114531,0.0004135,2]
[314107961,1707984643975,-224.50885469,0.0004135,2]
[314107962,1707984643984,-500.0,0.0004135,2]
[314107963,1707984643993,-202.1610986,0.0004135,2]
[314107964,1707984644005,-297.8389014,0.0004135,2]
[314107965,1707984644015,-500.0,0.0004135,2]
[314107966,1707984644025,-500.0,0.0004135,2]
[314107967,1707984644034,-500.0,0.0004135,2]
[314107968,1707984644044,-500.0,0.0004135,2]
[314107969,1707984644053,-500.0,0.0004135,2]
[314107970,1707984644062,-500.0,0.0004135,2]
[314107971,1707984644070,-500.0,0.0004135,2]
[314107972,1707984644079,-500.0,0.0004135,2]
[314107973,1707984644089,-500.0,0.0004135,2]
[314107974,1707984644098,-500.0,0.0004135,2]
[314107975,1707984644108,-500.0,0.0004135,2]
[314107976,1707984644117,-236.47576974,0.000414,2]
[314107977,1707984644127,-162317.10958711,0.0004224,30]
[314107978,1707984644138,-601.015996,0.0004224,30]
[314107979,1707984644149,-346.11167018,0.0004224,30]
[314107980,1707984644161,-822.29078517,0.0004224,30]
[314107981,1707984644172,-301.02675859,0.0004224,30]
[314107982,1707984644192,-500.0,0.0004135,2]
[314107983,1707984644201,-294.14994472,0.0004224,30]
[314107984,1707984644212,-7991.64494076,0.0004224,30]
[314107985,1707984644223,-3925.00001,0.0004224,30]
[314107986,1707984644234,-3330.0,0.0004224,30]
[314107987,1707984644246,-33017.00210895,0.0004224,30]
[314107988,1707984644258,-620.38351261,0.0004224,30]
[314107989,1707984644271,-2470.56538937,0.0004224,30]
[314107990,1707984644283,-449.80399366,0.0004224,30]
[314107991,1707984644294,-28258.53288605,0.0004224,30]
[314107992,1707984644306,-375.86332371,0.0004224,30]
[314107993,1707984644317,-17591.95984499,0.0004224,30]
[314107994,1707984644329,-293.30521316,0.0004224,30]
[314107995,1707984644340,-2237.30399341,0.0004224,30]
[314107996,1707984644352,-5176.098,0.0004224,30]
[314107997,1707984644364,-20044.47739885,0.0004224,30]
[314107998,1707984644375,-1373.69775017,0.0004224,30]
[314107999,1707984644387,-950.43904434,0.0004224,30]
[314108000,1707984644407,-209023.4049209,0.0004224,30]
[314108001,1707984644419,-1898.46706726,0.0004224,30]
[314108002,1707984644430,-1980.40151876,0.0004224,30]
[314108003,1707984644442,-581.57852825,0.0004224,30]
[314108004,1707984644453,-974.91771303,0.0004224,30]
[314108005,1707984644465,-2621.4719078,0.0004224,30]
[314108006,1707984644476,-763.43869,0.0004224,30]
[314108007,1707984644495,-500.0,0.0004135,2]
[314108008,1707984644504,-34.99325244,0.0004224,30]
[314108009,1707984644516,-2704.59681838,0.0004224,30]
[314108010,1707984644528,-2008.43447017,0.0004224,30]
[314108014,1707984645982,-500.0,0.0004135,2]
[314108015,1707984645991,-500.0,0.0004135,2]
[314108016,1707984646000,-500.0,0.0004135,2]
[314108017,1707984646010,-500.0,0.0004135,2]
[314108018,1707984646021,-500.0,0.0004135,2]
[314108019,1707984646030,-500.0,0.0004135,2]
[314108020,1707984646039,-1000.0,0.00042,7]
[314108021,1707984646048,-8203.72464828,0.0004224,30]
[314108022,1707984646059,-1207.22335713,0.0004224,30]
[314108023,1707984646071,-2328.82727501,0.0004224,30]
[314108024,1707984646083,-2560.14508689,0.0004224,30]
[314108025,1707984646095,-1678.15701126,0.0004224,30]
[314108026,1707984646116,-2145.53286202,0.0004224,30]
[314108027,1707984646159,-501.18501056,0.0004224,30]
[314108028,1707984646170,-747.44538123,0.0004224,30]
[314108029,1707984646187,-500.0,0.0004135,2]
[314108030,1707984646196,-4147.005672,0.0004224,30]
[314108031,1707984646208,-3664.36405818,0.0004224,30]
[314108032,1707984646219,-1000.0,0.0004224,30]
[314108033,1707984646231,-23659.96671489,0.0004224,30]
[314108034,1707984646242,-550.2626108,0.0004224,30]
[314108035,1707984646254,-7751.75,0.0004224,30]
[314108036,1707984646266,-842.89065066,0.0004224,30]
[314108037,1707984646278,-5884.50189554,0.0004224,30]
[314108038,1707984646290,-16349.02593572,0.0004224,30]
[314108039,1707984646301,-612.17153286,0.0004224,30]
[314108049,1707984647906,-25956.51164107,0.0004224,30]
[314108050,1707984647918,-2651.34995,0.0004224,30]
[314108051,1707984647929,-1680.6391544,0.0004224,30]
[314108052,1707984647941,-6115.8384129,0.0004224,30]
[314108053,1707984647953,-1937.31003432,0.0004224,30]
[314108054,1707984812600,1250.0,0.00025,3]
[314108077,1707985835081,-186.01,0.00031042,2]
[314108078,1707985835091,-235.06761078,0.00034103,2]
[314108079,1707985835142,-120.21635684,0.00034103,2]
[314108080,1707985835152,-5819.57608707,0.00034203,10]
[314108081,1707985835162,-5445.86837669,0.00034203,10]
[314108082,1707985835172,-374.48801136,0.00034203,10]
[314108083,1707985835181,-627.81390363,0.00035746,3]
[314108084,1707985835191,-429.92235517,0.0003579,3]
[314108085,1707985835201,-2004.0,0.00036,7]
[314108086,1707985835210,-276.35158437,0.00036131,7]
[314108087,1707985835219,-336.25,0.00036899,2]
[314108088,1707985835230,-2646.0,0.000371,3]
[314108089,1707985835239,-7821.34897672,0.000371,3]
[314108090,1707985835310,-4229.65102328,0.000371,3]
[314108091,1707985835319,-205.0,0.00038217,2]
[314108092,1707985835330,-216.54793737,0.00038356,7]
[314108098,1707985838135,-283.45206263,0.00038356,7]
[314108099,1707985838145,-231.17186082,0.0003863,7]
[314108100,1707985838186,-253.57654499,0.0003863,7]
[314108101,1707985838196,-150.99,0.0003863,2]
[314108102,1707985838205,-1918.340023,0.0003867,7]
[314108103,1707985838214,-269.44,0.0003869,2]
[314108104,1707985838223,-313.23,0.00038702,2]
[314108105,1707985838233,-152.44,0.00038715,2]
[314108106,1707985838242,-3945.4,0.00038734,2]
[314108107,1707985838252,-250.0,0.00038755,2]
[314108108,1707985838261,-250.0,0.00038757,111]
[314108109,1707985838271,-190.21177577,0.0003877,60]
[314108110,1707985838281,-500.0,0.00038781,2]
[314108111,1707985838289,-292.40639122,0.00038802,2]
[314108112,1707985838459,-713.82360878,0.00038802,2]
[314108113,1707985838469,-485.16,0.00038804,7]
[314108114,1707985838478,-35.47296753,0.00038817,2]
[314108338,1707985840721,-285.85693894,0.00038817,2]
[314108341,1707985840733,-1351.54251535,0.00038817,2]
[314108358,1707985840887,-327.12757818,0.00038817,2]
[314108360,1707985840896,-150.0,0.00038928,2]
[314108362,1707985840906,-1168.41,0.00039067,2]
[314108364,1707985840915,-336.25,0.00039163,2]
[314108366,1707985840924,-168.4,0.0003926,2]
[314108368,1707985840933,-150.0,0.000394,119]
[314108370,1707985840942,-886.82413415,0.00039452,2]
[314108440,1707985841648,-268.8234028,0.00039452,2]
[314108447,1707985841705,-731.18126348,0.00039452,2]
[314108509,1707985843152,-1623.8689092,0.00039452,2]
[314108510,1707985843211,-508.96929682,0.00039452,2]
[314108511,1707985843224,-3563.21471417,0.00039452,2]
[314108512,1707985843236,-502.72774546,0.00039452,2]
[314108513,1707985843247,-2673.3900878,0.00039452,2]
[314108514,1707985844974,-119.11144612,0.00039452,2]
[314108515,1707985844984,-271.83363794,0.00039645,2]
[314108516,1707985844993,-730.56,0.00039745,2]
[314108517,1707985845002,-161.78,0.00039746,2]
[314108518,1707985845012,-1131.0,0.00039848,20]
[314108519,1707985845021,-17505.89573911,0.0004,120]
[314108520,1707985845030,-2260.28692507,0.0004,4]
[314108521,1707985845040,-500.0,0.0004024,10]
[314108522,1707985845049,-1131.0,0.00040258,20]
[314108523,1707985845066,-271.83363793,0.00040273,2]
[314108524,1707985845081,-313.23,0.00040346,2]
[314108526,1707985845091,-2000.0,0.000405,3]
[314108528,1707985845102,-552.42921297,0.000405,3]
[314108530,1707985845130,-1447.57078703,0.000405,3]
[314108531,1707985845141,-1898.11667704,0.000405,3]
[314108532,1707985846244,-101.88332296,0.000405,3]
[314108533,1707985846255,-2497.33433926,0.000405,3]
[314108534,1707985846265,-155.67934135,0.00040519,30]
[314108535,1707985846274,-283.1505,0.00040525,2]
[314108536,1707985846284,-331.7838,0.00040525,2]
[314108537,1707985846294,-237.62,0.00040625,2]
[314108538,1707985846304,-161.31047168,0.00040632,30]
[314108539,1707985846313,-1131.0,0.00040669,20]
[314108540,1707985846324,-38060.3092,0.000407,2]
[314108541,1707985846334,-5930.1355,0.000408,2]
[314108542,1707985846344,-215.14807296,0.000408,3]
[314108543,1707985846353,-2100.65394435,0.000408,3]
[314108544,1707985846363,-14297.2156,0.000409,2]
[314108545,1707985846373,-10192.7223,0.000409,7]
[314108546,1707985846383,-2500.0,0.000409,2]
[314108547,1707985846392,-271.83363793,0.000409,2]
[314108548,1707985846401,-159.53892364,0.00040927,30]
[314108549,1707985846411,-200.0,0.00040987,7]
[314108550,1707985846420,-6883.59251734,0.0004099,15]
[314108551,1707985846429,-365.52665559,0.00040995,10]
[314108552,1707985846439,-159.53892364,0.00040997,30]
[314108553,1707985846448,-500.0,0.00040999,7]
[314108554,1707985846457,-500.0,0.00040999,7]
[314108555,1707985846466,-600.0,0.00040999,7]
[314108556,1707985846475,-530.37067572,0.00040999,7]
[314108557,1707985846485,-500.0,0.00040999,7]
[314108558,1707985846494,-500.0,0.00040999,7]
[314108559,1707985846503,-500.0,0.00040999,7]
[314108560,1707985846513,-534.11328451,0.00040999,7]
[314108561,1707985846522,-613.8924896,0.00040999,7]
[314108562,1707985846531,-518.22171204,0.00040999,7]
[314108564,1707985846540,-500.0,0.00040999,7]
[314108566,1707985846551,-548.58295329,0.00040999,7]
[314108568,1707985846560,-500.0,0.00040999,7]
[314108570,1707985846570,-500.0,0.00040999,7]
[314108572,1707985846580,-509.13501136,0.00040999,7]
[314108574,1707985846593,-500.0,0.00040999,7]
[314108576,1707985846603,-382.85955391,0.00040999,7]
[314108578,1707985846612,-517.49192962,0.00040999,7]
[314108579,1707985846621,-519.12443833,0.00040999,7]
[314108580,1707985846630,-500.0,0.00040999,7]
[314108581,1707985846640,-507.83983369,0.00040999,7]
[314108582,1707985846649,-500.0,0.00040999,7]
[314108583,1707985846659,-541.21373877,0.00040999,7]
[314108584,1707985846668,-615.70548283,0.00040999,7]
[314108585,1707985846677,-505.0988769,0.00040999,7]
[314108586,1707985846686,-354.23329702,0.00040999,7]
[314108587,1707985846696,-534.80408371,0.00040999,7]
[314108588,1707985846706,-528.5370889,0.00040999,7]
[314108589,1707985846715,-500.0,0.00040999,7]
[314108590,1707985846727,-355.36561505,0.00040999,7]
[314108591,1707985846737,-500.0,0.00040999,7]
[314108592,1707985846747,-219.29018242,0.00040999,7]
[314108593,1707985846756,-500.0,0.00040999,7]
[314108594,1707985846766,-602.45,0.00040999,7]
[314108595,1707985846775,-510.99,0.00040999,7]
[314108596,1707985846785,-500.0,0.00040999,7]
[314108597,1707985846800,-500.0,0.00040999,7]
[314108598,1707985846810,-501.91000576,0.00040999,7]
[314108599,1707985846819,-500.0,0.00040999,7]
[314108600,1707985846830,-503.37726577,0.00040999,7]
[314108601,1707985846840,-500.0,0.00040999,7]
[314108602,1707985846849,-500.0,0.00040999,7]
[314108603,1707985846858,-500.0,0.00040999,7]
[314108604,1707985846871,-500.0,0.00040999,7]
[314108605,1707985846880,-650.22659348,0.00040999,7]
[314108606,1707985846956,-365.48340652,0.00040999,7]
[314108607,1707985846969,-185.26255457,0.00040999,7]
[314108608,1707985846979,-500.0,0.00040999,7]
[314108609,1707985846989,-500.0,0.00040999,7]
[314108610,1707985847000,-235.8864987,0.00040999,7]
[314108611,1707985847009,-534.20605632,0.00040999,7]
[314108612,1707985847018,-4925.03051078,0.00041,31]
[314108613,1707985847031,-490.625,0.00041,31]
[314108614,1707985847043,-2770.45,0.00041,31]
[314108624,1707987032349,-1328.12902016,0.0003428,10]
[314108625,1707987032359,-673.92621162,0.00034307,10]
[314108626,1707987032368,-505.48271092,0.00034307,10]
[314108627,1707987032378,-500.0,0.00035616,2]
[314108628,1707987032387,-500.0,0.000361,2]
[314108629,1707987032397,-154.52149132,0.000361,2]
[314108630,1707987032406,-155.0,0.0003623,2]
[314108631,1707987032416,-444.85,0.00036554,2]
[314108632,1707987032425,-500.0,0.00036583,2]
[314108633,1707987032434,-165.64007228,0.000369,2]
[314108634,1707987032443,-1394.6641866,0.000369,4]
[314108635,1707987032453,-150.0,0.00036999,2]
[314108636,1707987032462,-300.0,0.00036999,3]
[314108637,1707987032471,-66.10872155,0.00037,30]
[314108638,1707987032487,-388.17595752,0.00037,30]
[314108639,1707987032500,-435.79844913,0.00037,30]
[314108640,1707987032517,-712.64531587,0.00037,30]
[314108641,1707987032679,-663.93622624,0.00037,30]
[314108644,1707987038362,-2080.84734254,0.00037,30]
[314108645,1707987038374,-7245.6036958,0.00037,30]
[314108646,1707987038386,-3406.88429135,0.00037,30]
[314108647,1707987038396,-1814.88,0.00037,5]
[314108648,1707987038405,-1394.66418659,0.00037,4]
[314108649,1707987038414,-500.0,0.00037067,2]
[314108650,1707987038424,-11623.29477654,0.000371,3]
[314108651,1707987038436,-817.70522346,0.000371,3]
[314108652,1707987038446,-4290.19,0.000371,2]
[314108653,1707987038458,-2320.83,0.00037351,2]
[314108654,1707987038468,-499.99,0.00037351,2]
[314108655,1707987038477,-165.64007222,0.00037471,2]
[314108656,1707987038487,-500.0,0.0003755,2]
[314108657,1707987038496,-500.0,0.00038034,2]
[314108658,1707987038505,-165.64007222,0.00038043,2]
[314108659,1707987038515,-150.0,0.00038463,2]
[314108660,1707987038524,-1000.0,0.00038472,2]
[314108661,1707987038534,-500.0,0.00038517,2]
[314108662,1707987038543,-174.84,0.00038547,2]
[314108663,1707987038552,-165.64007222,0.00038614,2]
[314108664,1707987038562,-155.0,0.0003864,2]
[314108665,1707987038571,-386.69622014,0.00038786,2]
[314108666,1707987038580,-444.85,0.00038818,2]
[314108667,1707987038589,-155.58,0.00038898,2]
[314108668,1707987038598,-503.11,0.00038961,2]
[314108669,1707987038607,-500.0,0.00039001,2]
[314108670,1707987038616,-1289.85360576,0.00039021,2]
[314108671,1707987038629,-710.14639424,0.00039021,2]
[314108672,1707987038638,-380.6,0.00039021,2]
[314108673,1707987038647,-1000.0,0.00039038,2]
[314108674,1707987038656,-364.95360576,0.00039039,2]
[314108675,1707987038669,-349.87639424,0.00039039,2]
[314108676,1707987038678,-227.37198469,0.00039041,2]
[314108677,1707987038689,-445.94319877,0.00039041,2]
[314108678,1707987038701,-709.85997169,0.00039041,2]
[314108679,1707987038712,-2320.54547166,0.00039041,2]
[314108680,1707987038724,-1000.73762323,0.00039041,2]
[314108687,1707987040972,-250.0,0.00038804,111]
[314108688,1707987040981,-869.993,0.00039041,2]
[314108689,1707987041779,-510.13070881,0.00039041,2]
[314108690,1707987041890,-979.10126491,0.00039041,2]
[314108691,1707987041947,-306.5613438,0.00039041,2]
[314108692,1707987041959,-272.65594049,0.00039041,2]
[314108693,1707987043356,-6032.36103876,0.00039041,2]
[314108694,1707987043368,-3925.65762383,0.00039041,2]
[314108695,1707987043379,-1331.72082936,0.00039041,2]
[314108696,1707987043389,-250.0,0.00039048,2]
[314108697,1707987043398,-1742.37217165,0.00039052,15]
[314108698,1707987043519,-359.05198259,0.00039052,15]
[314108699,1707987043631,-4696.60584576,0.00039052,15]
[314108700,1707987043641,-150.15,0.00039052,2]
[314108701,1707987043650,-223.49,0.00039056,2]
[314108702,1707987043658,-155.58,0.00039101,2]
[314108703,1707987043668,-1255.24,0.00039183,2]
[314108704,1707987043677,-165.64007222,0.00039185,2]
[314108705,1707987043686,-250.0,0.00039198,2]
[314108706,1707987043696,-603.09,0.00039226,2]
[314108707,1707987043705,-1202.14,0.00039241,2]
[314108708,1707987043714,-168.4,0.0003926,2]
[314108709,1707987043724,-500.0,0.00039262,2]
[314108710,1707987043733,-1516.09,0.00039269,2]
[314108711,1707987043742,-150.0,0.000393,118]
[314108713,1707987043751,-155.58,0.00039303,2]
[314108715,1707987043760,-603.09,0.00039432,2]
[314108717,1707987043769,-163.87,0.00039462,2]
[314108719,1707987043778,-500.0,0.00039484,2]
[314108721,1707987043787,-155.58,0.00039506,2]
[314108722,1707987043796,-603.09,0.00039639,2]
[314108724,1707987043805,-205.0,0.00039663,2]
[314108726,1707987043814,-155.58,0.00039709,2]
[314108727,1707987043824,-165.64007222,0.00039756,2]
[314108728,1707987043833,-603.09,0.00039845,2]
[314108729,1707987043842,-752.0,0.00039848,20]
[314108730,1707987043851,-155.58,0.00039911,2]
[314108731,1707987043860,-500.0,0.00039968,2]
[314108732,1707987043869,-15000.0,0.0004,30]
[314108733,1707987043879,-21903.80281937,0.0004,30]
[314108734,1707987043888,-287.99682595,0.0004,20]
[314108735,1707987043897,-155.0,0.0004,2]
[314108736,1707987043906,-250.0,0.0004,2]
[314108737,1707987043915,-9602.96451868,0.0004,12]
[314108738,1707987043924,-155.67934135,0.00040047,30]
[314108739,1707987043933,-603.09,0.00040051,2]
[314108740,1707987043941,-153.55779557,0.00040065,30]
[314108741,1707987043951,-155.58,0.00040114,2]
[314108742,1707987043960,-258.69,0.0004013,30]
[314108743,1707987043969,-159.69045391,0.00040189,30]
[314108744,1707987043978,-150.91484716,0.00040228,30]
[314108745,1707987043986,-500.0,0.0004024,10]
[314108746,1707987043996,-159.69045391,0.00040241,30]
[314108747,1707987044149,-603.09,0.00040258,2]
[314108748,1707987044159,-752.0,0.00040258,20]
[314108749,1707987044169,-357.40979208,0.00040267,30]
[314108750,1707987044178,-363.8359719,0.00040274,2]
[314108751,1707987044188,-155.58,0.00040317,2]
[314108752,1707987044197,-165.64007222,0.00040328,2]
[314108753,1707987044207,-156.04193554,0.00040356,30]
[314108754,1707987044217,-1000.0,0.000404,3]
[314108755,1707987044226,-500.0,0.00040451,2]
[314108756,1707987044235,-300.0,0.00040462,2]
[314108757,1707987044245,-603.09,0.00040464,2]
[314108758,1707987044254,-159.53892364,0.00040494,30]
[314108759,1707987044263,-164.21,0.00040499,2]
[314108760,1707987044272,-1000.0,0.000405,2]
[314108761,1707987044281,-156.04193554,0.00040519,30]
[314108762,1707987044291,-155.58,0.00040519,2]
[314108763,1707987044300,-151.0215,0.00040548,22]
[314108764,1707987044309,-151.0215,0.00040598,22]
[314108765,1707987044318,-151.021518,0.00040598,20]
[314108766,1707987044327,-634.83563452,0.00040638,2]
[314108767,1707987044337,-1337.03635959,0.00040643,2]
[314108768,1707987044346,-151.0215,0.00040648,22]
[314108769,1707987044357,-151.0215,0.00040658,21]
[314108770,1707987044366,-752.0,0.00040669,20]
[314108771,1707987044376,-603.09,0.00040671,2]
[314108772,1707987044385,-151.0215,0.00040698,25]
[314108773,1707987044394,-177.34,0.000407,2]
[314108774,1707987044403,-500.0,0.000407,2]
[314108775,1707987044412,-159.53892364,0.00040711,30]
[314108776,1707987044421,-155.58,0.00040722,2]
[314108777,1707987044431,-171.0215,0.00040748,22]
[314108778,1707987044440,-165.24115021,0.00040752,30]
[314108779,1707987044449,-151.0215,0.00040758,21]
[314108780,1707987044458,-2360.567,0.00040774,2]
[314108781,1707987044467,-1776.68,0.00040774,5]
[314108782,1707987044476,-4501.8995,0.0004079,7]
[314108783,1707987044486,-1890.58854996,0.00040796,3]
[314108784,1707987044495,-151.0215,0.00040798,25]
[314108785,1707987044504,-213.11163389,0.00040799,13]
[314108786,1707987044514,-541.4513,0.000408,2]
[314108787,1707987044523,-1712.7007,0.000408,2]
[314108788,1707987044533,-1885.4893,0.000408,2]
[314108789,1707987044542,-510.01723771,0.000408,2]
[314108790,1707987044551,-203.24455161,0.000408,2]
[314108791,1707987044561,-1255.24,0.00040827,2]
[314108792,1707987044570,-604.129771,0.00040858,21]
[314108793,1707987044579,-151.0215,0.00040858,22]
[314108794,1707987044589,-523.70186061,0.00040859,5]
[314108795,1707987044598,-603.09,0.00040877,2]
[314108796,1707987044607,-154.78068022,0.00040888,10]
[314108797,1707987044616,-543.47210354,0.00040889,7]
[314108798,1707987044625,-500.0,0.00040889,7]
[314108799,1707987044634,-500.0,0.00040889,7]
[314108800,1707987044643,-500.0,0.00040889,7]
[314108801,1707987044652,-500.0,0.00040889,7]
[314108802,1707987044661,-500.0,0.00040889,7]
[314108803,1707987044670,-500.0,0.00040889,7]
[314108804,1707987044680,-500.0,0.00040889,7]
[314108805,1707987044689,-500.0,0.00040889,7]
[314108806,1707987044698,-500.0,0.00040889,7]
[314108807,1707987044707,-500.0,0.00040889,7]
[314108808,1707987044716,-500.0,0.00040889,7]
[314108809,1707987044725,-500.0,0.00040889,7]
[314108810,1707987044734,-500.0,0.00040889,7]
[314108811,1707987044743,-500.0,0.00040889,7]
[314108812,1707987044752,-567.21344141,0.00040889,7]
[314108813,1707987044761,-577.34,0.00040889,7]
[314108814,1707987044771,-742.01,0.00040889,7]
[314108815,1707987044780,-500.0,0.00040889,7]